[Event "WALTON BAN-chT 2019"]
[Site "Bangladesh"]
[Date "2019.12.17"]
[Round "11.4"]
[White "Mohammad Fahad, Rahman"]
[Black "Ambarish, Sharma"]
[Result "1-0"]
[ECO "C01"]
[WhiteElo "2294"]
[BlackElo "1880"]
[Annotator "ChessBase"]
[PlyCount "101"]
[EventDate "2019.12.07"]
[EventType "team-tourn"]
[EventCountry "BAN"]
[SourceTitle "playchess.com"]
[Source "ChessBase"]
[SourceQuality "1"]
[TimeControl "5400+30"]

1. e4 {[%emt 0:00:00]} e6 {[%emt 0:00:07]} 2. d4 {[%emt 0:00:24]} d5 {[%emt 0:00:07]} 3. Bd3 {[%emt 0:00:15]} dxe4 {[%emt 0:01:02]} 4. Bxe4 {[%emt 0:00:07]} Nf6 {[%emt 0:00:07]} 5. Bf3 {[%emt 0:00:11]} c5 {[%emt 0:01:04]} 6. Ne2 {[%emt 0:00:34]} Nc6 {[%emt 0:00:29]} 7. Be3 {[%emt 0:01:01]} e5 {[%emt 0:11:25]} 8. d5 {[%emt 0:17:20]} Nd4 {[%emt 0:06:10]} 9. Nxd4 {[%emt 0:05:56]} cxd4 {[%emt 0:03:02]} 10. Bg5 {[%emt 0:00:18]} Bf5 {[%emt 0:01:22]} 11. O-O {[%emt 0:01:26]} h6 {[%emt 0:04:34]} 12. Re1 {[%emt 0:07:38]} hxg5 {[%emt 0:10:18]} 13. Rxe5+ {[%emt 0:00:29]} Be6 {[%emt 0:00:04]} 14. dxe6 {[%emt 0:06:17]} Bd6 {[%emt 0:01:03]} 15. Qxd4 {[%emt 0:05:26]} Bxe5 {[%emt 0:02:43]} 16. Qxe5 {[%emt 0:00:22]} Qe7 {[%emt 0:08:23]} 17. Qb5+ {[%emt 0:05:37]} Kf8 {[%emt 0:00:23]} 18. Qxg5 {[%emt 0:00:42]} Qxe6 {[%emt 0:00:16]} 19. Nc3 {[%emt 0:00:19]} Re8 {[%emt 0:01:15]} 20. h3 {[%emt 0:01:01]} Qe5 {[%emt 0:00:06]} 21. Qxe5 {[%emt 0:05:43]} Rxe5 {[%emt 0:00:06]} 22. Bxb7 {[%emt 0:00:04]} Ke7 {[%emt 0:00:06]} 23. Bf3 {[%emt 0:00:24]} Rb8 {[%emt 0:00:26]} 24. Na4 {[%emt 0:00:56]} Nd5 {[%emt 0:04:03]} 25. b3 {[%emt 0:02:15]} Nb4 {[%emt 0:01:48]} 26. c3 {[%emt 0:09:54]} Nc2 {[%emt 0:01:09]} 27. Rc1 {[%emt 0:02:00]} Ne1 {[%emt 0:00:07]} 28. Bg4 {[%emt 0:00:11]} f5 {[%emt 0:00:29]} 29. Bxf5 {[%emt 0:03:10]} Nxg2 {[%emt 0:00:23]} 30. Bg4 {[%emt 0:01:05]} Nf4 {[%emt 0:00:14]} 31. Rc2 {[%emt 0:02:31]} Rh8 {[%emt 0:01:07]} 32. Kh2 {[%emt 0:00:36]} Rg5 {[%emt 0:00:35]} 33. Kg3 {[%emt 0:00:35]} Nxh3 {[%emt 0:01:26]} 34. f3 {[%emt 0:04:51]} Rh6 {[%emt 0:00:19]} 35. Rh2 {[%emt 0:05:27]} Ng1 {[%emt 0:00:19]} 36. Rg2 {[%emt 0:00:35]} Nh3 {[%emt 0:00:46]} 37. c4 {[%emt 0:00:12]} Rgg6 {[%emt 0:00:34]} 38. f4 {[%emt 0:01:39]} Rd6 {[%emt 0:00:55]} 39. Nc5 {[%emt 0:03:41]} g5 {[%emt 0:00:49]} 40. Bxh3 {[%emt 0:02:37]} gxf4+ {[%emt 0:00:06]} 41. Kh2 {[%emt 0:01:15]} Rh5 {[%emt 0:00:02]} 42. Ne4 {[%emt 0:00:22]} Rd3 {[%emt 0:00:05]} 43. Nf2 {[%emt 0:00:42]} Rd2 {[%emt 0:00:03]} 44. Ng4 {[%emt 0:00:48]} Rd3 {[%emt 0:01:25]} 45. Re2+ {[%emt 0:00:10]} Kd6 {[%emt 0:00:32]} 46. Nf2 {[%emt 0:00:06]} Re3 {[%emt 0:00:12]} 47. Rd2+ {[%emt 0:00:17]} Kc5 {[%emt 0:00:06]} 48. Nd3+ {[%emt 0:00:53]} Kd4 {[%emt 0:00:40]} 49. Nxf4+ {[%emt 0:00:12]} Kc3 {[%emt 0:00:04]} 50. Rg2 {[%emt 0:00:16]} Rh4 {[%emt 0:01:02]} 51. Nd5+ {[%emt 0:00:07]} 1-0

[Event "WALTON BAN-chT 2019"]
[Site "Bangladesh"]
[Date "2019.12.17"]
[Round "11.5"]
[White "Mohammad Manik"]
[Black "Reefat, Bin-Sattar"]
[Result "0-1"]
[ECO "A34"]
[WhiteElo "1853"]
[BlackElo "2417"]
[Annotator "ChessBase"]
[PlyCount "110"]
[EventDate "2019.12.07"]
[EventType "team-tourn"]
[EventCountry "BAN"]
[SourceTitle "playchess.com"]
[Source "ChessBase"]
[SourceQuality "1"]
[TimeControl "5400+30"]

1. e4 {[%emt 0:00:00]} e6 {[%emt 0:00:04]} 2. c4 {[%emt 0:01:46]} b6 {[%emt 0:04:19]} 3. Nc3 {[%emt 0:02:44]} Bb7 {[%emt 0:00:42]} 4. Nf3 {[%emt 0:01:06]} c5 {[%emt 0:05:57]} 5. d4 {[%emt 0:01:33]} cxd4 {[%emt 0:00:08]} 6. Nxd4 {[%emt 0:00:59]} d6 {[%emt 0:03:26]} 7. Be2 {[%emt 0:02:40]} Nf6 {[%emt 0:01:54]} 8. Bf3 {[%emt 0:03:13]} Nbd7 {[%emt 0:01:18]} 9. h3 {[%emt 0:05:31]} a6 {[%emt 0:00:27]} 10. O-O {[%emt 0:01:05]} Be7 {[%emt 0:14:07]} 11. b3 {[%emt 0:01:35]} Qc7 {[%emt 0:00:55]} 12. Bb2 {[%emt 0:00:59]} h5 {[%emt 0:07:54]} 13. Bc1 {[%emt 0:07:32]} b5 {[%emt 0:24:46]} 14. Be3 {[%emt 0:06:14]} Ne5 {[%emt 0:04:24]} 15. Rc1 {[%emt 0:02:41]} b4 {[%emt 0:00:21]} 16. Nce2 {[%emt 0:03:53]} Nxf3+ {[%emt 0:12:43]} 17. gxf3 {[%emt 0:00:58]} Rb8 {[%emt 0:03:01]} 18. Qd2 {[%emt 0:02:31]} Ba8 {[%emt 0:04:14]} 19. Rfd1 {[%emt 0:02:36]} h4 {[%emt 0:04:21]} 20. Kf1 {[%emt 0:01:24]} Nd7 {[%emt 0:01:02]} 21. Ng1 {[%emt 0:00:45]} Nc5 {[%emt 0:02:02]} 22. Ke2 {[%emt 0:02:18]} Qb7 {[%emt 0:01:49]} 23. Re1 {[%emt 0:01:06]} g6 {[%emt 0:00:36]} 24. Kf1 {[%emt 0:04:26]} e5 {[%emt 0:00:38]} 25. Nde2 {[%emt 0:01:51]} Ne6 {[%emt 0:00:14]} 26. Rcd1 {[%emt 0:04:33]} O-O {[%emt 0:00:43]} 27. Qd5 {[%emt 0:03:13]} Qc8 {[%emt 0:00:20]} 28. Qd3 {[%emt 0:00:54]} f5 {[%emt 0:00:28]} 29. Qc2 {[%emt 0:05:42]} Kg7 {[%emt 0:00:48]} 30. Qb2 {[%emt 0:01:54]} fxe4 {[%emt 0:00:21]} 31. f4 {[%emt 0:01:27]} Qc7 {[%emt 0:00:16]} 32. c5 {[%emt 0:03:46]} Kh7 {[%emt 0:00:52]} 33. cxd6 {[%emt 0:00:43]} Bxd6 {[%emt 0:00:01]} 34. Rc1 {[%emt 0:02:56]} Qg7 {[%emt 0:00:08]} 35. Red1 {[%emt 0:01:16]} exf4 {[%emt 0:01:16]} 36. Qxg7+ {[%emt 0:01:02]} Nxg7 {[%emt 0:00:02]} 37. Ba7 {[%emt 0:00:44]} Rbd8 {[%emt 0:00:03]} 38. Bb6 {[%emt 0:02:57]} Rd7 {[%emt 0:00:05]} 39. Bc5 {[%emt 0:02:40]} Nf5 {[%emt 0:01:27]} 40. Bxd6 {[%emt 0:02:45]} Nxd6 {[%emt 0:00:23]} 41. Nd4 {[%emt 0:01:05]} f3 {[%emt 0:00:49]} 42. Ne6 {[%emt 0:00:46]} Rf5 {[%emt 0:00:44]} 43. Rc7 {[%emt 0:00:53]} Rxc7 {[%emt 0:00:41]} 44. Nxc7 {[%emt 0:00:08]} Bb7 {[%emt 0:00:18]} 45. Ke1 {[%emt 0:03:32]} Nf7 {[%emt 0:00:11]} 46. Rd7 {[%emt 0:00:23]} Kh6 {[%emt 0:00:30]} 47. Ne6 {[%emt 0:00:35]} Bc8 {[%emt 0:00:26]} 48. Re7 {[%emt 0:01:45]} Nd6 {[%emt 0:01:00]} 49. Nd8 {[%emt 0:01:51]} Rg5 {[%emt 0:00:21]} 50. Nxf3 {[%emt 0:02:04]} exf3 {[%emt 0:00:07]} 51. Re3 {[%emt 0:01:29]} Rf5 {[%emt 0:00:47]} 52. Nc6 {[%emt 0:03:31]} Rf4 {[%emt 0:00:18]} 53. Ne5 {[%emt 0:00:00]} Nf5 {[%emt 0:00:28]} 54. Nd3 {[%emt 0:00:00]} Nxe3 {[%emt 0:00:08]} 55. Nxf4 {[%emt 0:00:00]} Ng2+ {[%emt 0:00:04]} 0-1

[Event "WALTON BAN-chT 2019"]
[Site "Bangladesh"]
[Date "2019.12.17"]
[Round "11.9"]
[White "Alam, Monjur"]
[Black "Kulkarni, Rakesh"]
[Result "0-1"]
[ECO "A52"]
[WhiteElo "1899"]
[BlackElo "2334"]
[Annotator "ChessBase"]
[PlyCount "52"]
[EventDate "2019.12.07"]
[EventType "team-tourn"]
[EventCountry "BAN"]
[SourceTitle "playchess.com"]
[Source "ChessBase"]
[SourceQuality "1"]
[TimeControl "5400+30"]

1. d4 {[%emt 0:06:15]} Nf6 {[%emt 0:00:00]} 2. c4 {[%emt 0:00:08]} e5 {[%emt 0:00:00]} 3. dxe5 {[%emt 0:01:17]} Ng4 {[%emt 0:00:00]} 4. Nf3 {[%emt 0:00:25]} Bc5 {[%emt 0:00:00]} 5. e3 {[%emt 0:00:28]} Nc6 {[%emt 0:00:00]} 6. Be2 {[%emt 0:02:40]} O-O {[%emt 0:00:14]} 7. Bd2 {[%emt 0:01:42]} Re8 {[%emt 0:01:13]} 8. O-O {[%emt 0:05:30]} a5 {[%emt 0:03:14]} 9. h3 {[%emt 0:03:16]} Ngxe5 {[%emt 0:00:34]} 10. Bc3 {[%emt 0:00:40]} Nxf3+ {[%emt 0:00:45]} 11. Bxf3 {[%emt 0:00:12]} Ne5 {[%emt 0:00:10]} 12. Be2 {[%emt 0:05:36]} Ra6 {[%emt 0:00:11]} 13. Nd2 {[%emt 0:02:10]} Rg6 {[%emt 0:09:11]} 14. Ne4 {[%emt 0:11:55]} Qh4 {[%emt 0:09:11]} 15. Ng3 {[%emt 0:10:45]} d6 {[%emt 0:08:34]} 16. Bd4 {[%emt 0:03:33]} Bxh3 {[%emt 0:01:16]} 17. gxh3 {[%emt 0:14:23]} Qxh3 {[%emt 0:03:25]} 18. Bh5 {[%emt 0:00:31]} Rg4 {[%emt 0:14:32]} 19. Bxe5 {[%emt 0:02:34]} Rh4 {[%emt 0:10:45]} 20. Bxf7+ {[%emt 0:09:08]} Kxf7 {[%emt 0:04:13]} 21. Qd5+ {[%emt 0:00:51]} Kf8 {[%emt 0:00:56]} 22. Bxg7+ {[%emt 0:01:05]} Kxg7 {[%emt 0:00:11]} 23. Nf5+ {[%emt 0:01:26]} Kh8 {[%emt 0:00:18]} 24. Nxh4 {[%emt 0:01:17]} Qxh4 {[%emt 0:00:07]} 25. Rfe1 {[%emt 0:02:07]} Qh3 {[%emt 0:00:17]} 26. f4 {[%emt 0:01:03]} Rxe3 {[%emt 0:01:26]} 0-1

[Event "WALTON BAN-chT 2019"]
[Site "Bangladesh"]
[Date "2019.12.17"]
[Round "11.10"]
[White "Pranav, Shetty"]
[Black "Zia, Tahsin Tajwar"]
[Result "1-0"]
[ECO "B10"]
[WhiteElo "2162"]
[BlackElo "2148"]
[Annotator "ChessBase"]
[PlyCount "129"]
[EventDate "2019.12.07"]
[EventType "team-tourn"]
[EventCountry "BAN"]
[SourceTitle "playchess.com"]
[Source "ChessBase"]
[SourceQuality "1"]
[TimeControl "5400+30"]

1. e4 {[%emt 0:03:41]} c6 {[%emt 0:00:00]} 2. c4 {[%emt 0:00:30]} d5 {[%emt 0:00:00]} 3. exd5 {[%emt 0:00:05]} cxd5 {[%emt 0:00:00]} 4. cxd5 {[%emt 0:00:02]} Nf6 {[%emt 0:00:00]} 5. Nc3 {[%emt 0:00:05]} Nxd5 {[%emt 0:00:21]} 6. Nf3 {[%emt 0:00:04]} Nc6 {[%emt 0:00:13]} 7. Bb5 {[%emt 0:00:09]} a6 {[%emt 0:08:43]} 8. Bxc6+ {[%emt 0:23:38]} bxc6 {[%emt 0:00:11]} 9. Ne5 {[%emt 0:05:34]} Nxc3 {[%emt 0:06:29]} 10. dxc3 {[%emt 0:01:15]} Qxd1+ {[%emt 0:01:11]} 11. Kxd1 {[%emt 0:00:02]} Bb7 {[%emt 0:03:02]} 12. Be3 {[%emt 0:00:41]} f6 {[%emt 0:13:05]} 13. Nc4 {[%emt 0:09:08]} e5 {[%emt 0:05:15]} 14. f3 {[%emt 0:01:05]} Be7 {[%emt 0:01:54]} 15. b4 {[%emt 0:04:33]} Rd8+ {[%emt 0:11:24]} 16. Ke2 {[%emt 0:00:43]} Kf7 {[%emt 0:04:21]} 17. Rhd1 {[%emt 0:14:20]} Ke6 {[%emt 0:03:24]} 18. Na5 {[%emt 0:00:37]} Ba8 {[%emt 0:02:05]} 19. Nb3 {[%emt 0:02:59]} Rd5 {[%emt 0:07:09]} 20. Bc5 {[%emt 0:00:52]} Rhd8 {[%emt 0:03:14]} 21. Bxe7 {[%emt 0:15:22]} Kxe7 {[%emt 0:02:05]} 22. Nc5 {[%emt 0:05:27]} a5 {[%emt 0:02:21]} 23. a3 {[%emt 0:00:01]} g6 {[%emt 0:07:52]} 24. c4 {[%emt 0:01:46]} Rxd1 {[%emt 0:02:57]} 25. Rxd1 {[%emt 0:00:01]} Rxd1 {[%emt 0:00:17]} 26. Kxd1 {[%emt 0:00:02]} f5 {[%emt 0:00:50]} 27. g4 {[%emt 0:04:11]} axb4 {[%emt 0:01:21]} 28. axb4 {[%emt 0:00:01]} fxg4 {[%emt 0:05:10]} 29. fxg4 {[%emt 0:00:02]} Kf6 {[%emt 0:00:48]} 30. Ne4+ {[%emt 0:02:34]} Ke7 {[%emt 0:01:12]} 31. Nc5 {[%emt 0:02:28]} Kf6 {[%emt 0:00:11]} 32. Ne4+ {[%emt 0:02:39]} Ke7 {[%emt 0:00:02]} 33. Ke2 {[%emt 0:01:01]} Bb7 {[%emt 0:00:27]} 34. g5 {[%emt 0:00:31]} Bc8 {[%emt 0:01:00]} 35. Nc5 {[%emt 0:00:39]} Kd6 {[%emt 0:01:04]} 36. Ne4+ {[%emt 0:00:09]} Ke7 {[%emt 0:00:43]} 37. Nc5 {[%emt 0:00:05]} Kd6 {[%emt 0:00:16]} 38. Ke3 {[%emt 0:00:09]} Bf5 {[%emt 0:03:42]} 39. h4 {[%emt 0:00:03]} Kc7 {[%emt 0:01:08]} 40. Ne4 {[%emt 0:00:24]} Kb6 {[%emt 0:00:12]} 41. Nc5 {[%emt 0:01:12]} Bh3 {[%emt 0:00:53]} 42. Nd3 {[%emt 0:00:51]} Be6 {[%emt 0:01:09]} 43. Nxe5 {[%emt 0:00:20]} c5 {[%emt 0:00:24]} 44. b5 {[%emt 0:00:04]} Kc7 {[%emt 0:00:39]} 45. Kd3 {[%emt 0:00:07]} Kd6 {[%emt 0:00:06]} 46. Nf3 {[%emt 0:00:43]} Bf5+ {[%emt 0:00:12]} 47. Ke3 {[%emt 0:00:06]} Be6 {[%emt 0:00:15]} 48. Kd3 {[%emt 0:00:34]} Bf5+ {[%emt 0:00:11]} 49. Kc3 {[%emt 0:01:27]} Be4 {[%emt 0:00:52]} 50. Nd2 {[%emt 0:00:08]} Bb7 {[%emt 0:00:09]} 51. Kd3 {[%emt 0:00:25]} Ke5 {[%emt 0:00:43]} 52. Ke3 {[%emt 0:00:01]} Ba8 {[%emt 0:01:02]} 53. Nb3 {[%emt 0:00:04]} Kd6 {[%emt 0:00:03]} 54. Kf4 {[%emt 0:00:03]} Bg2 {[%emt 0:01:07]} 55. Nd2 {[%emt 0:00:07]} Kc7 {[%emt 0:00:58]} 56. Ne4 {[%emt 0:03:26]} Bf1 {[%emt 0:00:40]} 57. Nd2 {[%emt 0:00:17]} Bg2 {[%emt 0:00:54]} 58. Ke5 {[%emt 0:00:05]} Kb6 {[%emt 0:00:49]} 59. Kf6 {[%emt 0:00:55]} Ka5 {[%emt 0:01:33]} 60. Kg7 {[%emt 0:00:03]} Kb4 {[%emt 0:00:06]} 61. Kxh7 {[%emt 0:00:03]} Kc3 {[%emt 0:00:05]} 62. Kxg6 {[%emt 0:00:06]} Kxd2 {[%emt 0:00:04]} 63. h5 {[%emt 0:00:01]} Bf1 {[%emt 0:01:16]} 64. b6 {[%emt 0:00:21]} Bd3+ {[%emt 0:00:12]} 65. Kf6 {[%emt 0:00:20]} 1-0

[Event "WALTON BAN-chT 2019"]
[Site "Bangladesh"]
[Date "2019.12.17"]
[Round "11.11"]
[White "Yasin, Arafat"]
[Black "Anata, Choudhury"]
[Result "0-1"]
[ECO "A47"]
[WhiteElo "1879"]
[BlackElo "2137"]
[Annotator "ChessBase"]
[PlyCount "166"]
[EventDate "2019.12.07"]
[EventType "team-tourn"]
[EventCountry "BAN"]
[SourceTitle "playchess.com"]
[Source "ChessBase"]
[SourceQuality "1"]
[TimeControl "5400+30"]

1. d4 {[%emt 1:30:30]} Nf6 2. Nf3 {[%emt 0:00:30]} g6 3. e3 Bg7 {[%emt 1:31:30]} 4. Bd3 c5 {[%emt 0:00:30]} 5. c3 {[%emt 0:01:30]} b6 {[%emt 0:00:30]} 6. O-O {[%emt 0:00:30]} O-O {[%emt 0:00:30]} 7. Nbd2 {[%emt 0:00:30]} Bb7 {[%emt 0:00:30]} 8. Qe2 {[%emt 0:00:30]} d5 {[%emt 0:00:30]} 9. dxc5 {[%emt 0:00:30]} bxc5 {[%emt 0:00:30]} 10. e4 {[%emt 0:00:30]} dxe4 {[%emt 0:00:30]} 11. Nxe4 {[%emt 0:00:30]} Nbd7 {[%emt 0:00:30]} 12. Bg5 {[%emt 0:00:30]} Qc7 {[%emt 0:00:30]} 13. Rfe1 {[%emt 0:00:30]} Nb6 {[%emt 0:00:30]} 14. Rad1 {[%emt 0:00:30]} Rad8 {[%emt 0:00:30]} 15. Bc2 {[%emt 0:00:30]} Rd5 {[%emt 0:00:30]} 16. Rxd5 {[%emt 0:00:30]} Bxd5 {[%emt 0:00:30]} 17. Bxf6 {[%emt 0:00:30]} exf6 {[%emt 0:00:30]} 18. Qb5 {[%emt 0:00:30]} Rc8 {[%emt 0:00:30]} 19. Bb3 {[%emt 0:00:30]} c4 {[%emt 0:00:30]} 20. Bc2 {[%emt 0:00:30]} f5 {[%emt 0:00:30]} 21. Ng3 {[%emt 0:00:30]} Bc6 {[%emt 0:00:30]} 22. Qa5 {[%emt 0:00:30]} Qb7 {[%emt 0:00:30]} 23. Nh4 {[%emt 0:00:30]} Nd5 {[%emt 0:00:30]} 24. Rb1 {[%emt 0:00:30]} Bf6 {[%emt 0:00:30]} 25. Nhxf5 {[%emt 0:00:30]} gxf5 {[%emt 0:00:30]} 26. Nxf5 {[%emt 0:00:30]} Qb6 {[%emt 0:00:30]} 27. Qa3 {[%emt 0:00:30]} Bd7 {[%emt 0:00:30]} 28. Re1 {[%emt 0:00:30]} Be6 {[%emt 0:00:30]} 29. Nd6 {[%emt 0:00:30]} Rc5 {[%emt 0:00:30]} 30. Ne4 {[%emt 0:00:30]} Be7 {[%emt 0:00:30]} 31. Qa4 {[%emt 0:00:30]} Rc8 {[%emt 0:00:30]} 32. b4 {[%emt 0:00:30]} Bf6 {[%emt 0:00:30]} 33. Nxf6+ {[%emt 0:00:30]} Nxf6 {[%emt 0:00:30]} 34. Qa3 {[%emt 0:00:30]} Ng4 {[%emt 0:00:30]} 35. Re2 {[%emt 0:00:30]} Qd6 {[%emt 0:00:30]} 36. g3 {[%emt 0:00:30]} Bd5 {[%emt 0:00:30]} 37. Qc1 {[%emt 0:00:30]} Qh6 {[%emt 0:00:30]} 38. Qxh6 {[%emt 0:00:30]} Nxh6 {[%emt 0:00:30]} 39. f4 {[%emt 0:00:30]} Ng4 {[%emt 0:00:30]} 40. Bf5 {[%emt 0:00:30]} Be6 {[%emt 0:00:30]} 41. Rxe6 {[%emt 0:00:30]} Rd8 {[%emt 0:00:30]} 42. Re2 {[%emt 0:00:30]} Rd1+ {[%emt 0:00:30]} 43. Kg2 {[%emt 0:00:30]} Nf6 {[%emt 0:00:30]} 44. Be4 {[%emt 0:00:30]} Ra1 {[%emt 0:00:30]} 45. Kf3 {[%emt 0:00:30]} h5 {[%emt 0:00:30]} 46. Ke3 {[%emt 0:00:30]} Rd1 {[%emt 0:00:30]} 47. h3 {[%emt 0:00:30]} Rg1 {[%emt 0:00:30]} 48. Kd4 {[%emt 0:00:30]} Rxg3 {[%emt 0:00:30]} 49. Re3 {[%emt 0:00:30]} Nxe4 {[%emt 0:00:30]} 50. Kxe4 {[%emt 0:00:30]} Rg2 {[%emt 0:00:30]} 51. Kd4 {[%emt 0:00:30]} Rxa2 {[%emt 0:00:30]} 52. Rf3 {[%emt 0:00:30]} Kg7 {[%emt 0:00:30]} 53. Kxc4 {[%emt 0:00:30]} Kf6 {[%emt 0:00:30]} 54. Kc5 {[%emt 0:00:30]} Kf5 {[%emt 0:00:30]} 55. c4 {[%emt 0:00:30]} Ke4 {[%emt 0:00:30]} 56. Rc3 {[%emt 0:00:30]} f5 {[%emt 0:00:30]} 57. b5 {[%emt 0:00:30]} Kxf4 {[%emt 0:00:30]} 58. Kc6 {[%emt 0:00:30]} Ke4 {[%emt 0:00:30]} 59. c5 {[%emt 0:00:30]} f4 {[%emt 0:00:30]} 60. Kc7 {[%emt 0:00:30]} f3 {[%emt 0:00:30]} 61. c6 {[%emt 0:00:30]} f2 {[%emt 0:00:30]} 62. Rc1 {[%emt 0:00:30]} Rb2 {[%emt 0:00:30]} 63. Kb7 {[%emt 0:00:30]} Rxb5+ {[%emt 0:00:30]} 64. Kxa7 {[%emt 0:00:30]} Re5 {[%emt 0:00:30]} 65. c7 {[%emt 0:00:30]} Re8 {[%emt 0:00:30]} 66. Kb7 {[%emt 0:00:30]} h4 {[%emt 0:00:30]} 67. Rd1 {[%emt 0:00:30]} Kf3 {[%emt 0:00:30]} 68. Rd8 {[%emt 0:00:30]} f1=Q {[%emt 0:00:30]} 69. c8=Q {[%emt 0:00:30]} Qb5+ {[%emt 0:00:30]} 70. Ka7 {[%emt 0:00:30]} Qa5+ {[%emt 0:00:30]} 71. Kb7 {[%emt 0:00:30]} Rxd8 {[%emt 0:00:30]} 72. Qg4+ {[%emt 0:00:30]} Ke3 {[%emt 0:00:30]} 73. Qg1+ {[%emt 0:00:30]} Kd2 {[%emt 0:00:30]} 74. Qf2+ {[%emt 0:00:30]} Kc1 {[%emt 0:00:30]} 75. Qg1+ {[%emt 0:00:30]} Kb2 {[%emt 0:00:30]} 76. Qg2+ {[%emt 0:00:30]} Rd2 {[%emt 0:00:30]} 77. Qc6 {[%emt 0:00:30]} Qb4+ {[%emt 0:00:30]} 78. Ka7 {[%emt 0:00:30]} Qa3+ {[%emt 0:00:30]} 79. Kb7 {[%emt 0:00:30]} Ka1 {[%emt 0:00:30]} 80. Qh1+ {[%emt 0:00:30]} Ka2 {[%emt 0:00:30]} 81. Qe4 {[%emt 0:00:30]} Qb3+ {[%emt 0:00:30]} 82. Ka7 {[%emt 0:00:30]} Rd7+ {[%emt 0:00:30]} 83. Ka6 {[%emt 0:00:30]} Qd3+ {[%emt 0:00:30]} 0-1

[Event "WALTON BAN-chT 2019"]
[Site "Bangladesh"]
[Date "2019.12.17"]
[Round "11.12"]
[White "Khusenkhojaev, Muhammad"]
[Black "Shawket Bin, Osman Shaon"]
[Result "1-0"]
[ECO "E17"]
[WhiteElo "2427"]
[BlackElo "2006"]
[Annotator "ChessBase"]
[PlyCount "135"]
[EventDate "2019.12.07"]
[EventType "team-tourn"]
[EventCountry "BAN"]
[SourceTitle "playchess.com"]
[Source "ChessBase"]
[SourceQuality "1"]
[TimeControl "5400+30"]

1. Nf3 {[%emt 1:30:30]} Nf6 {[%emt 1:30:30]} 2. c4 {[%emt 0:00:30]} e6 {[%emt 0:00:30]} 3. g3 {[%emt 0:00:30]} b6 {[%emt 0:00:30]} 4. Bg2 {[%emt 0:00:30]} Bb7 {[%emt 0:00:30]} 5. O-O {[%emt 0:00:30]} Be7 {[%emt 0:00:30]} 6. Nc3 {[%emt 0:00:30]} O-O {[%emt 0:00:30]} 7. Re1 {[%emt 0:00:30]} d5 {[%emt 0:00:30]} 8. cxd5 {[%emt 0:00:30]} exd5 {[%emt 0:00:30]} 9. d4 {[%emt 0:00:30]} c5 {[%emt 0:00:30]} 10. Bf4 {[%emt 0:00:30]} Nc6 {[%emt 0:00:30]} 11. dxc5 {[%emt 0:00:30]} bxc5 {[%emt 0:00:30]} 12. Ne5 {[%emt 0:00:30]} Bd6 {[%emt 0:00:30]} 13. Nxc6 {[%emt 0:00:30]} Bxc6 {[%emt 0:00:30]} 14. Bg5 {[%emt 0:00:30]} Be5 {[%emt 0:00:30]} 15. Rc1 {[%emt 0:00:30]} Rc8 {[%emt 0:00:30]} 16. b3 {[%emt 0:00:30]} d4 {[%emt 0:00:30]} 17. Ne4 {[%emt 0:00:30]} Bxe4 {[%emt 0:00:30]} 18. Bxe4 {[%emt 0:00:30]} h6 {[%emt 0:00:30]} 19. Bxf6 {[%emt 0:00:30]} Bxf6 {[%emt 0:00:30]} 20. Rc4 {[%emt 0:00:30]} Re8 {[%emt 0:00:30]} 21. Qc2 {[%emt 0:00:30]} Qe7 {[%emt 0:00:30]} 22. Bf5 {[%emt 0:00:30]} Rc7 {[%emt 0:00:30]} 23. b4 {[%emt 0:00:30]} g6 {[%emt 0:00:30]} 24. Bd3 {[%emt 0:00:30]} Rec8 {[%emt 0:00:30]} 25. Rc1 {[%emt 0:00:30]} Bg5 {[%emt 0:00:30]} 26. f4 {[%emt 0:00:30]} Qe3+ {[%emt 0:00:30]} 27. Kg2 {[%emt 0:00:30]} Be7 {[%emt 0:00:30]} 28. Rf1 {[%emt 0:00:30]} f5 {[%emt 0:00:30]} 29. bxc5 {[%emt 0:00:30]} Bxc5 {[%emt 0:00:30]} 30. Rb1 {[%emt 0:00:30]} Qe7 {[%emt 0:00:30]} 31. Rb5 {[%emt 0:00:30]} Qd6 {[%emt 0:00:30]} 32. Qb1 {[%emt 0:00:30]} Kg7 {[%emt 0:00:30]} 33. h4 {[%emt 0:00:30]} h5 {[%emt 0:00:30]} 34. Kf2 {[%emt 0:00:30]} Qe7 {[%emt 0:00:30]} 35. a4 {[%emt 0:00:30]} Bd6 {[%emt 0:00:30]} 36. Rxc7 {[%emt 0:00:30]} Rxc7 {[%emt 0:00:30]} 37. Kg2 {[%emt 0:00:30]} Qe3 {[%emt 0:00:30]} 38. Rb7 {[%emt 0:00:30]} Qe7 {[%emt 0:00:30]} 39. Rxc7 {[%emt 0:00:30]} Qxc7 {[%emt 0:00:30]} 40. Qb5 {[%emt 0:00:30]} Bc5 {[%emt 0:00:30]} 41. Qe8 {[%emt 0:00:30]} Qe7 {[%emt 0:00:30]} 42. Qc8 {[%emt 0:00:30]} Qf8 {[%emt 0:00:30]} 43. Qb7+ {[%emt 0:00:30]} Qe7 {[%emt 0:00:30]} 44. Qa8 {[%emt 0:00:30]} Qf8 {[%emt 0:00:30]} 45. Qf3 {[%emt 0:00:30]} Qe7 {[%emt 0:00:30]} 46. a5 {[%emt 0:00:30]} Qc7 {[%emt 0:00:30]} 47. a6 {[%emt 0:00:30]} Bb6 {[%emt 0:00:30]} 48. Qd5 {[%emt 0:00:30]} Qd8 {[%emt 0:00:30]} 49. Qe6 {[%emt 0:00:30]} Qf6 {[%emt 0:00:30]} 50. Qd7+ {[%emt 0:00:30]} Qf7 {[%emt 0:00:30]} 51. Qb5 {[%emt 0:00:30]} Qe7 {[%emt 0:00:30]} 52. Qd5 {[%emt 0:00:30]} Qf7 {[%emt 0:00:30]} 53. Qb7 {[%emt 0:00:30]} Qxb7+ {[%emt 0:00:30]} 54. axb7 {[%emt 0:00:30]} Bc7 {[%emt 0:00:30]} 55. Ba6 {[%emt 0:00:30]} Kf6 {[%emt 0:00:30]} 56. Kf2 {[%emt 0:00:30]} Ke6 {[%emt 0:00:30]} 57. Bb5 {[%emt 0:00:30]} a5 {[%emt 0:00:30]} 58. Be8 {[%emt 0:00:30]} Kf6 {[%emt 0:00:30]} 59. Ke1 {[%emt 0:00:30]} Bb8 {[%emt 0:00:30]} 60. Kd2 {[%emt 0:00:30]} Kg7 {[%emt 0:00:30]} 61. Kd3 {[%emt 0:00:30]} Ba7 {[%emt 0:00:30]} 62. Kc4 {[%emt 0:00:30]} g5 {[%emt 0:00:30]} 63. hxg5 {[%emt 0:00:30]} h4 {[%emt 0:00:30]} 64. gxh4 {[%emt 0:00:30]} Bb8 {[%emt 0:00:30]} 65. Kxd4 {[%emt 0:00:30]} Bxf4 {[%emt 0:00:30]} 66. h5 {[%emt 0:00:30]} Bc7 {[%emt 0:00:30]} 67. h6+ {[%emt 0:00:30]} Kf8 {[%emt 0:00:30]} 68. g6 {[%emt 0:00:30]} 1-0